fUSD/lending_fUSD_20240329
["ID","MTS","AMOUNT","RATE_DAILY","PERIOD"]
[320984524,1711729838918,-170.52421203,0.00038383,2]
[320984525,1711729838928,-42740.3412474,0.00038799,2]
[320984526,1711729838937,-400.0,0.00039,3]
[320984527,1711729838946,-162.05,0.00039063,2]
[320984528,1711729838957,-162.05,0.00039073,2]
[320984529,1711729838966,-162.05,0.00039083,2]
[320984530,1711729838975,-162.05,0.00039093,2]
[320984531,1711729838985,-161.91,0.00039102,15]
[320984532,1711729838994,-162.05,0.00039104,2]
[320984533,1711729839003,-162.05,0.00039114,2]
[320984534,1711729839012,-162.05,0.00039124,2]
[320984535,1711729839021,-162.05,0.00039134,2]
[320984536,1711729839030,-162.05,0.00039145,2]
[320984537,1711729839039,-162.05,0.00039155,2]
[320984538,1711729839049,-162.05,0.00039165,2]
[320984539,1711729839058,-162.05,0.00039176,2]
[320984540,1711729839069,-162.05,0.00039186,2]
[320984541,1711729839078,-162.05,0.00039196,2]
[320984542,1711729839088,-162.05,0.00039206,2]
[320984543,1711729839097,-162.05,0.00039217,2]
[320984544,1711729839107,-162.05,0.00039227,2]
[320984545,1711729839116,-162.05,0.00039237,2]
[320984546,1711729839125,-162.05,0.00039248,2]
[320984547,1711729839135,-162.05,0.00039258,2]
[320984548,1711729839144,-400.0,0.00039507,2]
[320984549,1711729839154,-785.0,0.0004,60]
[320984550,1711729839164,-3443.62,0.00040153,2]
[320984551,1711729839174,-999.999999,0.00040182,4]
[320984552,1711729839184,-170.52421203,0.00040252,2]
[320984553,1711729839193,-166.66,0.00040274,2]
[320984554,1711729839207,-596.45,0.00040398,2]
[320984555,1711729839216,-710.3,0.00040416,2]
[320984556,1711729839225,-652.78,0.00040467,2]
[320984557,1711729839247,-629.0,0.000409,2]
[320984558,1711729839258,-163.33,0.00040972,2]
[320984559,1711729839268,-646.20041529,0.00040979,2]
[320984560,1711729839278,-42740.3412474,0.00040982,2]
[320984561,1711729839289,-450.0,0.00041,3]
[320984562,1711729839300,-1000.0,0.00041158,2]
[320984563,1711729839310,-200.15597255,0.0004122,13]
[320984564,1711729839321,-512.7907693,0.0004142,4]
[320984565,1711729839331,-150.36,0.00041438,2]
[320984566,1711729839341,-1800.0,0.000415,15]
[320984567,1711729839351,-2800.0,0.000416,15]
[320984568,1711729839361,-3700.0,0.000417,15]
[320984569,1711729839374,-600.0,0.0004178,2]
[320984570,1711729839384,-2008.0706,0.000418,10]
[320984571,1711729839395,-4600.0,0.000418,15]
[320984572,1711729839405,-155.0,0.00041875,4]
[320984573,1711729839415,-900.0,0.000419,15]
[320984574,1711729839425,-150.0,0.00041948,2]
[320984575,1711729839435,-541.650901,0.00042,30]
[320984576,1711729839445,-219.74370775,0.00042,2]
[320984577,1711729839456,-219.74370775,0.00042,2]
[320984578,1711729839466,-219.74370775,0.00042,2]
[320984579,1711729839475,-219.74370775,0.00042,2]
[320984580,1711729839485,-219.74370775,0.00042,2]
[320984581,1711729839494,-219.74370775,0.00042,2]
[320984582,1711729839504,-219.74370775,0.00042,2]
[320984583,1711729839514,-219.74370775,0.00042,2]
[320984584,1711729839523,-219.74370775,0.00042,2]
[320984585,1711729839533,-219.74370775,0.00042,2]
[320984586,1711729839543,-219.74370775,0.00042,2]
[320984587,1711729839554,-219.74370775,0.00042,2]
[320984588,1711729839564,-219.74370775,0.00042,2]
[320984589,1711729839575,-219.74370775,0.00042,2]
[320984590,1711729839584,-219.74370775,0.00042,2]
[320984591,1711729839595,-219.74370775,0.00042,2]
[320984592,1711729839605,-219.74370775,0.00042,2]
[320984593,1711729839615,-219.74370775,0.00042,2]
[320984594,1711729839626,-219.74370775,0.00042,2]
[320984595,1711729839635,-219.74370775,0.00042,2]
[320984596,1711729839645,-219.74370775,0.00042,2]
[320984597,1711729839655,-219.74370775,0.00042,2]
[320984598,1711729839665,-219.74370775,0.00042,2]
[320984599,1711729839675,-219.74370775,0.00042,2]
[320984600,1711729839685,-219.74370775,0.00042,2]
[320984601,1711729839695,-219.74370775,0.00042,2]
[320984602,1711729839705,-219.74370775,0.00042,2]
[320984603,1711729839714,-219.74370775,0.00042,2]
[320984604,1711729839724,-219.74370775,0.00042,2]
[320984605,1711729839734,-219.74370775,0.00042,2]
[320984606,1711729839743,-219.74370775,0.00042,2]
[320984607,1711729839753,-219.74370775,0.00042,2]
[320984608,1711729839763,-219.74370775,0.00042,2]
[320984610,1711729839773,-219.74370775,0.00042,2]
[320984612,1711729839782,-219.74370775,0.00042,2]
[320984614,1711729839792,-219.74370775,0.00042,2]
[320984616,1711729839801,-219.74370775,0.00042,2]
[320984618,1711729839810,-219.74370775,0.00042,2]
[320984620,1711729839820,-219.74370775,0.00042,2]
[320984622,1711729839829,-219.74370775,0.00042,2]
[320984624,1711729839839,-219.74370775,0.00042,2]
[320984626,1711729839848,-219.74370775,0.00042,2]
[320984628,1711729839858,-219.74370775,0.00042,2]
[320984630,1711729839868,-219.74370775,0.00042,2]
[320984632,1711729839877,-219.74370775,0.00042,2]
[320984634,1711729839887,-219.74370775,0.00042,2]
[320984637,1711729839896,-219.74370775,0.00042,2]
[320984641,1711729839906,-219.74370775,0.00042,2]
[320984645,1711729839916,-219.74370775,0.00042,2]
[320984648,1711729839925,-219.74370775,0.00042,2]
[320984651,1711729839939,-219.74370775,0.00042,2]
[320984653,1711729839949,-219.74370775,0.00042,2]
[320984655,1711729839959,-219.74370775,0.00042,2]
[320984657,1711729839968,-219.74370775,0.00042,2]
[320984659,1711729839978,-219.74370775,0.00042,2]
[320984661,1711729839988,-219.74370775,0.00042,2]
[320984663,1711729839998,-219.74370775,0.00042,2]
[320984665,1711729840008,-219.74370775,0.00042,2]
[320984667,1711729840019,-219.74370775,0.00042,2]
[320984669,1711729840029,-219.74370775,0.00042,2]
[320984671,1711729840039,-219.74370775,0.00042,2]
[320984672,1711729840048,-219.74370775,0.00042,2]
[320984673,1711729840058,-219.74370775,0.00042,2]
[320984674,1711729840069,-219.74370775,0.00042,2]
[320984675,1711729840079,-219.74370775,0.00042,2]
[320984676,1711729840089,-219.74370775,0.00042,2]
[320984677,1711729840099,-219.74370775,0.00042,2]
[320984678,1711729840110,-219.74370775,0.00042,2]
[320984679,1711729840122,-219.74370775,0.00042,2]
[320984680,1711729840132,-219.74370775,0.00042,2]
[320984681,1711729840142,-219.74370775,0.00042,2]
[320984682,1711729840152,-219.74370775,0.00042,2]
[320984683,1711729840162,-219.74370775,0.00042,2]
[320984684,1711729840174,-219.74370775,0.00042,2]
[320984685,1711729840186,-219.74370775,0.00042,2]
[320984686,1711729840196,-219.74370775,0.00042,2]
[320984687,1711729840208,-219.74370775,0.00042,2]
[320984688,1711729840220,-219.74370775,0.00042,2]
[320984689,1711729840230,-219.74370775,0.00042,2]
[320984690,1711729840240,-219.74370775,0.00042,2]
[320984691,1711729840250,-219.74370775,0.00042,2]
[320984692,1711729840261,-219.74370775,0.00042,2]
[320984693,1711729840271,-219.74370775,0.00042,2]
[320984694,1711729840281,-219.74370775,0.00042,2]
[320984695,1711729840291,-219.74370775,0.00042,2]
[320984696,1711729840301,-219.74370775,0.00042,2]
[320984697,1711729840312,-219.74370775,0.00042,2]
[320984698,1711729840322,-219.74370775,0.00042,2]
[320984699,1711729840332,-219.74370775,0.00042,2]
[320984700,1711729840341,-219.74370775,0.00042,2]
[320984701,1711729840351,-219.74370775,0.00042,2]
[320984702,1711729840361,-219.74370775,0.00042,2]
[320984703,1711729840371,-219.74370775,0.00042,2]
[320984704,1711729840381,-219.74370775,0.00042,2]
[320984705,1711729840390,-219.74370775,0.00042,2]
[320984706,1711729840400,-219.74370775,0.00042,2]
[320984707,1711729840410,-219.74370775,0.00042,2]
[320984708,1711729840420,-219.74370775,0.00042,2]
[320984709,1711729840430,-219.74370775,0.00042,2]
[320984710,1711729840439,-219.74370775,0.00042,2]
[320984711,1711729840449,-6846.31548419,0.000421,16]
[320984712,1711729840461,-151.46221669,0.000421,14]
[320984713,1711729840470,-167.26760921,0.000421,6]
[320984715,1711729840484,-203.04403712,0.0004212,2]
[320984716,1711729840494,-192.48966374,0.0004212,8]
[320984717,1711729840505,-325.02005494,0.0004212,35]
[320984718,1711729840515,-170.52421203,0.0004212,2]
[320984719,1711729840524,-6987.93760316,0.0004212,2]
[320984720,1711729840534,-904.8581605,0.0004212,2]
[320984721,1711729840545,-151.07750915,0.0004212,2]
[320984722,1711729840555,-5000.0,0.00042121,2]
[320984723,1711729840566,-150.0,0.0004219,2]
[320984724,1711729840576,-190189.704,0.000422,2]
[320984725,1711729840587,-500.0,0.000422,2]
[320984726,1711729840597,-5300.0,0.000422,2]
[320984727,1711729840608,-163.33,0.0004221,2]
[320984728,1711729840618,-163.33,0.0004221,2]
[320984729,1711729840628,-163.33,0.0004221,2]
[320984730,1711729840638,-151.75,0.00042211,15]
[320984731,1711729840648,-15633.51013509,0.00042219,6]
[320984732,1711729840658,-3143.62093361,0.00042219,3]
[320984733,1711729840668,-4765.34784761,0.0004222,7]
[320984734,1711729840677,-61671.89130303,0.0004222,2]
[320984735,1711729840688,-3546.66884765,0.0004222,5]
[320984736,1711729840698,-35849.33141384,0.0004222,15]
[320984737,1711729840711,-3208.84640533,0.0004222,2]
[320984738,1711729840722,-7524.31919112,0.0004222,7]
[320984739,1711729840733,-2988.0,0.0004222,10]
[320984740,1711729840743,-2595.65446299,0.0004222,2]
[320984741,1711729840754,-6065.93291967,0.0004222,2]
[320984742,1711729840764,-24395.96297285,0.0004222,2]
[320984743,1711729840775,-156.09764906,0.0004222,2]
[320984744,1711729840784,-479.24787887,0.0004222,2]
[320984745,1711729840793,-1975886.94692619,0.0004222,7]
[320984746,1711729840803,-1212.37263975,0.0004222,2]
[320984747,1711729840812,-5366.40429486,0.0004222,2]
[320984748,1711729840822,-17341.66668682,0.0004222,7]
[320984749,1711729840832,-37768.92996314,0.0004222,2]
[320984750,1711729840842,-1065.12026545,0.0004222,7]
[320984751,1711729840851,-379002.63472488,0.0004222,2]
[320984752,1711729840861,-88615.94705877,0.0004222,7]
[320984753,1711729840871,-510.12705489,0.0004222,7]
[320984754,1711729840880,-432528.10731921,0.0004222,2]
[320984755,1711729840891,-2619.45,0.0004222,2]
[320984756,1711729840900,-2619.45,0.0004222,2]
[320984757,1711729840910,-2619.45,0.0004222,2]
[320984758,1711729840920,-2619.45,0.0004222,2]
[320984759,1711729840931,-2619.45,0.0004222,2]
[320984760,1711729840940,-2619.45,0.0004222,2]
[320984761,1711729840950,-2619.45,0.0004222,2]
[320984762,1711729840960,-2619.45,0.0004222,2]
[320984763,1711729840970,-2619.45,0.0004222,2]
[320984764,1711729840980,-2619.45,0.0004222,2]
[320984765,1711729840989,-2619.45,0.0004222,2]
[320984766,1711729840999,-2619.45,0.0004222,2]
[320984767,1711729841008,-2619.45,0.0004222,2]
[320984768,1711729841018,-2619.45,0.0004222,2]
[320984769,1711729841028,-2619.45,0.0004222,2]
[320984770,1711729841038,-2619.45,0.0004222,2]
[320984771,1711729841047,-2619.45,0.0004222,2]
[320984772,1711729841056,-2619.45,0.0004222,2]
[320984773,1711729841065,-2619.45,0.0004222,2]
[320984774,1711729841075,-2619.45,0.0004222,2]
[320984775,1711729841084,-2619.45,0.0004222,2]
[320984776,1711729841094,-2619.45,0.0004222,2]
[320984777,1711729841104,-2619.45,0.0004222,2]
[320984778,1711729841113,-2619.52990599,0.0004222,2]
[320984779,1711729841123,-150.5,0.0004227,15]
[320984780,1711729841132,-150.5,0.0004227,15]
[320984781,1711729841142,-161.0,0.0004227,15]
[320984782,1711729841152,-332.0,0.0004227,15]
[320984783,1711729841161,-150.5,0.0004228,15]
[320984784,1711729841171,-150.5,0.0004228,15]
[320984785,1711729841184,-161.0,0.0004228,15]
[320984786,1711729841197,-332.0,0.0004228,15]
[320984787,1711729841206,-343.37968561,0.0004229,4]
[320984788,1711729841217,-150.5,0.0004229,15]
[320984789,1711729841227,-150.5,0.0004229,15]
[320984790,1711729841236,-161.0,0.0004229,15]
[320984791,1711729841246,-332.0,0.0004229,15]
[320984792,1711729841255,-155.7461911,0.00042291,2]
[320984793,1711729841266,-325.81689227,0.00042291,4]
[320984794,1711729841277,-5169.60332232,0.00042297,2]
[320984795,1711729841287,-940.53414581,0.00042298,4]
[320984796,1711729841296,-204.5764823,0.00042298,4]
[320984797,1711729841305,-313.77815206,0.00042298,4]
[320984798,1711729841315,-2208.43614893,0.00042298,4]
[320984799,1711729841325,-2354.61977538,0.00042298,4]
[320984800,1711729841335,-882.58912947,0.00042298,120]
[320984801,1711729841345,-5698.6112271,0.00042298,4]
[320984802,1711729841355,-325.53192041,0.00042298,4]
[320984803,1711729841365,-201.17184422,0.00042298,4]
[320984804,1711729841378,-1696.51382603,0.00042299,4]
[320984805,1711729841388,-113283.72044653,0.00042299,4]
[320984806,1711729841399,-1100611.88039331,0.000423,30]
[320984807,1711729841915,-18341.96320972,0.000423,30]
[320984808,1711729841927,-144711.87985833,0.000423,30]
[320984809,1711729841943,-4448.1883835,0.000423,30]
[320984810,1711729841954,-1725.83672377,0.000423,30]
[320984811,1711729841966,-6514.40950825,0.000423,30]
[320984812,1711729841977,-2223.01337876,0.000423,30]
[320984813,1711729841989,-517.01061454,0.000423,30]
[320984814,1711729842005,-10516.84432381,0.000423,30]
[320984815,1711729842017,-4089.11401471,0.000423,30]
[320984816,1711729842029,-16939.93242671,0.000423,30]
[320984817,1711729842073,-72713.65418298,0.00032416,2]
[320984818,1711729842084,-8903.99796647,0.00032416,2]
[320984819,1711729842434,-81280.50859955,0.00032416,2]
[320984820,1711729842443,-505600.77995092,0.000423,30]
[320984821,1711729842453,-2000.0,0.000423,7]
[320984822,1711729842462,-200.0,0.000423,7]
[320984823,1711729842471,-216401.6040572,0.00042311,2]
[320984824,1711729842480,-293.4295238,0.00042311,2]
[320984825,1711729842489,-20010.4702329,0.00042311,2]
[320984826,1711729842498,-3346.66621381,0.00042398,4]
[320984827,1711729842508,-230.83,0.000424,7]
[320984828,1711729842517,-298.0,0.000424,7]
[320984829,1711729842526,-307.63,0.000424,7]
[320984830,1711729842535,-2000.0,0.00042723,7]
[320984831,1711729842544,-200.0,0.00042723,7]
[320984832,1711729842553,-652.78,0.00042731,2]
[320984833,1711729842562,-500.0,0.00043,3]
[320984834,1711729842571,-400.0,0.00043098,2]
[320984835,1711729842580,-151.46221665,0.0004314,18]
[320984836,1711729842589,-42740.3412474,0.00043166,2]
[320984837,1711729842598,-6846.31548409,0.0004317,17]
[320984838,1711729842607,-1086.52,0.00043513,2]
[320984839,1711729842616,-12933.64,0.00043513,2]
[320984840,1711729842625,-150.0,0.00043594,120]
[320984841,1711729842634,-60000.0,0.00044,4]
[320984842,1711729842643,-325.02005493,0.0004404,37]
[320984843,1711729842652,-151.46221665,0.00044179,22]
[320984844,1711729842662,-6846.31548409,0.0004424,19]
[320984845,1711729842671,-230.83,0.000443,7]
[320984846,1711729842681,-298.0,0.000443,7]
[320984847,1711729842699,-307.63,0.000443,7]
[320984848,1711729842714,-2008.07061,0.000443,22]
[320984849,1711729842723,-150.0,0.00044424,60]
[320984850,1711729842732,-161.91,0.00044973,15]
[320984851,1711729842742,-652.78,0.00044995,2]
[320984852,1711729842751,-10413.46640118,0.00045,5]
[320984853,1711729842761,-550.0,0.00045,3]
[320984854,1711729842770,-150.36,0.00045205,2]
[320984855,1711729842780,-151.46221665,0.00045219,26]
[320984856,1711729842790,-6846.31548409,0.00045311,20]
[320984857,1711729842799,-42740.3412474,0.00045349,2]
[320984858,1711729842808,-624.97597385,0.000454,10]
[320984859,1711729842818,-600.0,0.00045579,2]
[320984860,1711729842828,-325.02005493,0.0004596,40]
[320984862,1711729842837,-151.46221665,0.00046259,30]
[320984864,1711729842847,-6846.31548409,0.00046381,22]
[320984866,1711729842857,-298.0,0.000464,7]
[320984868,1711729842866,-307.63,0.000464,7]
[320984870,1711729842876,-1156.819569,0.00046603,30]
[320984872,1711729842886,-230.83,0.000468,7]
[320984874,1711729842895,-2008.0706,0.000468,34]
[320984876,1711729842904,-6987.93760314,0.0004691,2]
[320984879,1711729842913,-904.8581605,0.0004691,2]
[320984881,1711729842922,-49256.45048376,0.00047,7]
[320984882,1711729842932,-600.0,0.00047,3]
[320984883,1711729842942,-1156.819569,0.00047185,30]
[320984884,1711729842951,-151.5596968,0.00047191,7]
[320984885,1711729842961,-652.78,0.00047259,2]
[320984886,1711729842971,-151.46221665,0.00047298,34]
[320984887,1711729842981,-6846.31548409,0.00047451,23]
[320984888,1711729842991,-42740.3412474,0.00047533,2]
[320984889,1711729843000,-155.0,0.00047666,4]
[320984890,1711729843010,-713.34782609,0.00047666,4]
[320984891,1711729843019,-464.63554701,0.00047667,4]
[320984892,1711729843029,-176.89732879,0.00047667,4]
[320984894,1711729843039,-173.19731869,0.00047667,4]
[320984895,1711729843048,-1156.819569,0.00047768,30]
[320984896,1711729843058,-325.02005493,0.0004788,43]
[320984897,1711729843067,-163.45089843,0.00047896,30]
[320984898,1711729843076,-298.0,0.000479,7]
[320984899,1711729843085,-307.63,0.000479,7]
[320984900,1711729843095,-157.45435616,0.00047906,30]
[320984901,1711729843104,-152.19513702,0.00047932,30]
[320984902,1711729843114,-500.0,0.00048,120]
[320984903,1711729843124,-191.24444444,0.00048,120]
[320984904,1711729843134,-163.45089843,0.00048118,30]
[320984905,1711729843144,-152.34987458,0.00048138,30]
[320984906,1711729843153,-2621.46771022,0.0004829,10]
[320984907,1711729843163,-230.83,0.000483,7]
[320984908,1711729843173,-168.63839945,0.00048314,30]
[320984909,1711729843183,-151.46221665,0.00048338,38]
[320984910,1711729843195,-1156.819569,0.0004835,30]
[320984911,1711729843206,-160.61807745,0.00048368,30]
[320984912,1711729843216,-151.38314238,0.00048402,30]
[320984913,1711729843225,-471.098439,0.00048498,98]
[320984914,1711729843235,-6846.31548409,0.00048521,24]
[320984915,1711729843244,-191.24444444,0.00048603,120]
[320984916,1711729843254,-1039.0,0.000487,117]
[320984917,1711729843263,-7142.36445764,0.00048728,2]
[320984918,1711729843273,-10399.47828445,0.00048777,4]
[320984919,1711729843284,-3498.151,0.0004888,2]
[320984920,1711729843294,-900.0,0.000489,17]
[320984921,1711729843304,-1156.819569,0.00048933,30]
[320984922,1711729843314,-161.0,0.0004894,15]
[320984923,1711729843323,-332.0,0.0004894,15]
[320984924,1711729843333,-161.0,0.0004895,15]
[320984925,1711729843342,-332.0,0.0004895,15]
[320984926,1711729843351,-161.0,0.0004896,15]
[320984927,1711729843360,-332.0,0.0004896,15]
[320984928,1711729843370,-9721.94026535,0.00048967,12]
[320984929,1711729843380,-157.73076923,0.00048967,30]
[320984930,1711729843390,-151.0,0.00048967,2]
[320984931,1711729843400,-2297612.25241101,0.00049,2]
[320984932,1711729843409,-1141.94457681,0.00049,30]
[320984933,1711729843419,-1000.0,0.00049,29]
[320984934,1711729843428,-650.0,0.00049,3]
[320984935,1711729843438,-152.34987458,0.00049086,30]
[320984936,1711729843447,-152.34987458,0.00049099,30]
[320984937,1711729843457,-298.0,0.000491,7]
[320984938,1711729843466,-307.63,0.000491,7]
[320984939,1711729843476,-3303.34437691,0.000492,2]
[320984940,1711729843485,-191.24444444,0.00049205,120]
[320984941,1711729843494,-298.7215,0.00049299,30]
[320984942,1711729843503,-2008.07061,0.000493,46]
[320984943,1711729843513,-500.0,0.00049315,30]
[320984944,1711729843521,-1000.0,0.00049315,60]
[320984945,1711729843531,-1511.47,0.00049315,60]
[320984946,1711729843540,-151.0,0.00049315,120]
[320984947,1711729843549,-151.0,0.00049315,120]
[320984948,1711729843557,-151.0,0.00049315,120]
[320984949,1711729843567,-152.898674,0.00049315,120]
[320984950,1711729843576,-151.0,0.00049315,120]
[320984951,1711729843585,-151.0,0.00049315,120]
[320984952,1711729843595,-151.0,0.00049315,120]
[320984953,1711729843605,-151.0,0.00049315,120]
[320984954,1711729843614,-151.0,0.00049315,120]
[320984955,1711729843624,-152.830462,0.00049315,120]
[320984956,1711729843633,-151.0,0.00049315,120]
[320984957,1711729843642,-151.0,0.00049315,120]
[320984958,1711729843652,-151.0,0.00049315,120]
[320984959,1711729843661,-151.0,0.00049315,120]
[320984960,1711729843670,-151.0,0.00049315,120]
[320984961,1711729843680,-151.0,0.00049315,120]
[320984962,1711729843689,-151.0,0.00049315,120]
[320984963,1711729843698,-151.0,0.00049315,120]
[320984964,1711729843710,-252.552416,0.00049315,120]
[320984965,1711729843720,-151.0,0.00049315,120]
[320984966,1711729843729,-151.0,0.00049315,120]
[320984967,1711729843738,-151.0,0.00049315,7]
[320984968,1711729843748,-151.0,0.00049315,7]
[320984969,1711729843758,-151.0,0.00049315,7]
[320984970,1711729843767,-151.0,0.00049315,7]
[320984971,1711729843776,-151.0,0.00049315,120]
[320984972,1711729843786,-151.0,0.00049315,120]
[320984973,1711729843795,-151.0,0.00049315,120]
[320984974,1711729843805,-151.0,0.00049315,120]
[320984975,1711729843814,-151.0,0.00049315,120]
[320984976,1711729843824,-151.0,0.00049315,120]
[320984977,1711729843834,-151.0,0.00049315,120]
[320984978,1711729843843,-151.0,0.00049315,120]
[320984979,1711729843852,-151.0,0.00049315,120]
[320984980,1711729843862,-151.0,0.00049315,120]
[320984981,1711729843876,-151.0,0.00049315,120]
[320984982,1711729843885,-151.0,0.00049315,120]
[320984983,1711729843895,-151.0,0.00049315,14]
[320984984,1711729843909,-151.0,0.00049315,14]
[320984985,1711729843918,-151.0,0.00049315,14]
[320984986,1711729843928,-151.0,0.00049315,14]
[320984987,1711729843939,-151.0,0.00049315,120]
[320984988,1711729843948,-151.0,0.00049315,120]
[320984989,1711729843959,-151.0,0.00049315,120]
[320984990,1711729843968,-151.0,0.00049315,120]
[320984991,1711729843977,-151.0,0.00049315,120]
[320984992,1711729843986,-151.0,0.00049315,120]
[320984993,1711729843996,-151.0,0.00049315,120]
[320984994,1711729844005,-151.0,0.00049315,120]
[320984995,1711729844014,-151.0,0.00049315,120]
[320984996,1711729844022,-151.0,0.00049315,120]
[320984997,1711729844031,-151.0,0.00049315,120]
[320984998,1711729844040,-151.0,0.00049315,120]
[320984999,1711729844050,-296.463927,0.00049315,120]
[320985000,1711729844059,-296.463927,0.00049315,120]
[320985001,1711729844069,-296.463927,0.00049315,120]
[320985002,1711729844078,-296.463927,0.00049315,120]
[320985003,1711729844087,-151.334418,0.00049315,120]
[320985004,1711729844096,-151.0,0.00049315,120]
[320985005,1711729844105,-151.0,0.00049315,120]
[320985006,1711729844115,-226.79276,0.00049315,120]
[320985007,1711729844124,-226.79276,0.00049315,120]
[320985008,1711729844133,-226.79276,0.00049315,120]
[320985009,1711729844143,-226.79276,0.00049315,120]
[320985010,1711729844152,-151.0,0.00049315,120]
[320985011,1711729844161,-151.0,0.00049315,120]
[320985012,1711729844171,-154.30408,0.00049315,7]
[320985013,1711729844184,-284.70867,0.00049315,30]
[320985014,1711729844194,-284.70867,0.00049315,30]
[320985015,1711729844205,-284.70867,0.00049315,30]
[320985016,1711729844214,-284.70867,0.00049315,30]
[320985017,1711729844224,-151.0,0.00049315,120]
[320985018,1711729844234,-151.0,0.00049315,120]
[320985019,1711729844243,-151.0,0.00049315,120]
[320985020,1711729844253,-151.0,0.00049315,120]
[320985021,1711729844263,-213.581579,0.00049315,120]
[320985022,1711729844274,-213.581579,0.00049315,120]
[320985023,1711729844283,-151.0,0.00049315,120]
[320985024,1711729844293,-213.581579,0.00049315,120]
[320985025,1711729844302,-151.0,0.00049315,120]
[320985026,1711729844311,-213.581579,0.00049315,120]
[320985027,1711729844320,-151.0,0.00049315,45]
[320985029,1711729844329,-151.0,0.00049315,45]
[320985031,1711729844339,-151.0,0.00049315,120]
[320985033,1711729844348,-151.0,0.00049315,120]
[320985035,1711729844357,-152.094444,0.00049315,21]
[320985037,1711729844366,-156.224541,0.00049315,120]
[320985039,1711729844376,-151.0,0.00049315,120]
[320985041,1711729844385,-151.0,0.00049315,120]
[320985043,1711729844394,-151.0,0.00049315,120]
[320985045,1711729844402,-736.095125,0.00049315,120]
[320985047,1711729844412,-528.127388,0.00049315,120]
[320985049,1711729844421,-736.095125,0.00049315,120]
[320985051,1711729844430,-528.127388,0.00049315,120]
[320985052,1711729844439,-151.0,0.00049315,7]
[320985055,1711729844448,-452.885485,0.00049315,120]
[320985057,1711729844458,-452.885485,0.00049315,120]
[320985059,1711729844467,-151.0,0.00049315,120]
[320985061,1711729844476,-151.0,0.00049315,120]
[320985063,1711729844485,-315.302384,0.00049315,120]
[320985065,1711729844495,-315.302384,0.00049315,120]
[320985067,1711729844504,-151.0,0.00049315,120]
[320985069,1711729844513,-194.012859,0.00049315,120]
[320985071,1711729844523,-860.247712,0.00049315,60]
[320985073,1711729844532,-860.247712,0.00049315,60]
[320985075,1711729844542,-151.0,0.00049315,120]
[320985077,1711729844551,-151.0,0.00049315,120]
[320985079,1711729844560,-151.0,0.00049315,120]
[320985081,1711729844569,-151.0,0.00049315,120]
[320985082,1711729844578,-266.88937,0.00049315,120]
[320985084,1711729844587,-266.88937,0.00049315,120]
[320985085,1711729844596,-151.0,0.00049315,120]
[320985086,1711729844606,-151.0,0.00049315,120]
[320985087,1711729844615,-151.0,0.00049315,120]
[320985088,1711729844624,-151.0,0.00049315,120]
[320985089,1711729844633,-172.716002,0.00049315,30]
[320985090,1711729844642,-172.716002,0.00049315,30]
[320985091,1711729844651,-151.0,0.00049315,120]
[320985092,1711729844660,-151.0,0.00049315,120]
[320985093,1711729844670,-151.0,0.00049315,120]
[320985094,1711729844679,-151.0,0.00049315,120]
[320985095,1711729844688,-151.0,0.00049315,120]
[320985097,1711729844697,-151.0,0.00049315,120]
[320985099,1711729844709,-151.0,0.00049315,120]
[320985101,1711729844718,-151.0,0.00049315,120]
[320985103,1711729844727,-151.0,0.00049315,120]